[Event "*** SCC Grand Prix: Titled Tuesday Blitz"]
[Site "Chess.com"]
[Date "2020.10.06"]
[Round "1"]
[White "RobertoJBM"]
[Black "Region_07"]
[Result "1-0"]
[WhiteElo "2730"]
[BlackElo "2377"]
[TimeControl "180+1"]
[EndTime "10:07:40 PDT"]
[Termination "RobertoJBM won on time"]

1. d4 {[%clk 0:02:58.6]} 1... d5 {[%clk 0:02:54.6]} 2. c4 {[%clk 0:02:57.3]}
2... Nc6 {[%clk 0:02:54.7]} 3. cxd5 {[%clk 0:02:55.7]} 3... Qxd5 {[%clk
0:02:55.6]} 4. e3 {[%clk 0:02:55.1]} 4... e5 {[%clk 0:02:55.8]} 5. Nc3 {[%clk
0:02:54.8]} 5... Bb4 {[%clk 0:02:56.2]} 6. Bd2 {[%clk 0:02:42]} 6... Bxc3 {[%clk
0:02:55.2]} 7. Bxc3 {[%clk 0:02:42.9]} 7... exd4 {[%clk 0:02:54.1]} 8. Ne2
{[%clk 0:02:42.8]} 8... Nge7 {[%clk 0:02:46.2]} 9. Nxd4 {[%clk 0:02:42]} 9...
O-O {[%clk 0:02:36.7]} 10. Nxc6 {[%clk 0:02:35]} 10... Qxc6 {[%clk 0:02:31.2]}
11. Rc1 {[%clk 0:02:17.8]} 11... Qe4 {[%clk 0:02:17.6]} 12. Qd4 {[%clk
0:02:07.4]} 12... Qxd4 {[%clk 0:02:16]} 13. Bxd4 {[%clk 0:02:08.3]} 13... c6
{[%clk 0:02:11.8]} 14. Bc4 {[%clk 0:02:04.3]} 14... Nf5 {[%clk 0:02:01.6]} 15.
Bc5 {[%clk 0:01:58.8]} 15... Re8 {[%clk 0:02:01.2]} 16. O-O {[%clk 0:01:55.9]}
16... Be6 {[%clk 0:02:00.1]} 17. Bxe6 {[%clk 0:01:52.1]} 17... Rxe6 {[%clk
0:02:01]} 18. Rfd1 {[%clk 0:01:52]} 18... b6 {[%clk 0:01:58.4]} 19. Ba3 {[%clk
0:01:48.2]} 19... c5 {[%clk 0:01:56.1]} 20. b4 {[%clk 0:01:45.7]} 20... cxb4
{[%clk 0:01:21.8]} 21. Bxb4 {[%clk 0:01:46.6]} 21... a5 {[%clk 0:01:20.1]} 22.
Ba3 {[%clk 0:01:44.6]} 22... h6 {[%clk 0:01:09.4]} 23. Rc7 {[%clk 0:01:41.8]}
23... Ree8 {[%clk 0:00:55.2]} 24. g4 {[%clk 0:01:37.9]} 24... Nh4 {[%clk
0:00:53.3]} 25. Rdd7 {[%clk 0:01:31.7]} 25... Rad8 {[%clk 0:00:49.8]} 26. Kf1
{[%clk 0:01:27]} 26... Rxd7 {[%clk 0:00:47.3]} 27. Rxd7 {[%clk 0:01:27.9]} 27...
Nf3 {[%clk 0:00:43.4]} 28. h3 {[%clk 0:01:25.2]} 28... Ne5 {[%clk 0:00:39.6]}
29. Rc7 {[%clk 0:01:12.5]} 29... Re6 {[%clk 0:00:22.5]} 30. Bb2 {[%clk
0:01:00.8]} 30... Nd3 {[%clk 0:00:19.8]} 31. Bd4 {[%clk 0:00:58.6]} 31... b5
{[%clk 0:00:19.3]} 32. h4 {[%clk 0:00:55.4]} 32... Ne5 {[%clk 0:00:16.4]} 33.
Rc5 {[%clk 0:00:48.3]} 33... Nxg4 {[%clk 0:00:15.1]} 34. Rxb5 {[%clk 0:00:48.5]}
34... a4 {[%clk 0:00:12.8]} 35. Ra5 {[%clk 0:00:48]} 35... Rc6 {[%clk
0:00:11.3]} 36. Bc5 {[%clk 0:00:31.6]} 36... Nf6 {[%clk 0:00:09.2]} 37. f3
{[%clk 0:00:25.2]} 37... Nd5 {[%clk 0:00:07.2]} 38. Kf2 {[%clk 0:00:20.3]} 38...
Nc3 {[%clk 0:00:07]} 39. a3 {[%clk 0:00:18.3]} 39... g5 {[%clk 0:00:04.8]} 40.
hxg5 {[%clk 0:00:18.2]} 40... hxg5 {[%clk 0:00:05.7]} 41. Bb4 {[%clk 0:00:17.6]}
41... Nd1+ {[%clk 0:00:04.1]} 42. Ke2 {[%clk 0:00:16.3]} 42... Rc1 {[%clk
0:00:05]} 43. Rxg5+ {[%clk 0:00:14.2]} 43... Kh7 {[%clk 0:00:04.1]} 44. Kd2
{[%clk 0:00:14.2]} 44... Rb1 {[%clk 0:00:02.8]} 45. Rg1 {[%clk 0:00:14.7]} 1-0

[Event "*** SCC Grand Prix: Titled Tuesday Blitz"]
[Site "Chess.com"]
[Date "2020.10.06"]
[Round "1"]
[White "MPGM"]
[Black "MrTattaglia"]
[Result "0-1"]
[WhiteElo "2449"]
[BlackElo "2873"]
[TimeControl "180+1"]
[EndTime "10:07:41 PDT"]
[Termination "MrTattaglia won by resignation"]

1. e4 {[%clk 0:02:57.8]} 1... c5 {[%clk 0:02:56]} 2. Nf3 {[%clk 0:02:57.1]} 2...
Nc6 {[%clk 0:02:53.1]} 3. Bb5 {[%clk 0:02:57]} 3... d6 {[%clk 0:02:41.7]} 4. O-O
{[%clk 0:02:55.3]} 4... Bd7 {[%clk 0:02:40.9]} 5. Re1 {[%clk 0:02:54.9]} 5... a6
{[%clk 0:02:38.1]} 6. Bf1 {[%clk 0:02:54.2]} 6... Nf6 {[%clk 0:02:36.8]} 7. c3
{[%clk 0:02:52.1]} 7... Bg4 {[%clk 0:02:20.1]} 8. h3 {[%clk 0:02:49.4]} 8...
Bxf3 {[%clk 0:02:19.4]} 9. Qxf3 {[%clk 0:02:50.3]} 9... g6 {[%clk 0:02:20.1]}
10. Qd1 {[%clk 0:02:36.4]} 10... Bg7 {[%clk 0:02:16]} 11. d4 {[%clk 0:02:36]}
11... O-O {[%clk 0:02:15.4]} 12. d5 {[%clk 0:02:29.4]} 12... Ne5 {[%clk
0:02:14.4]} 13. a4 {[%clk 0:02:26.7]} 13... Re8 {[%clk 0:02:09.5]} 14. Na3
{[%clk 0:02:14.3]} 14... Rb8 {[%clk 0:02:04.3]} 15. f4 {[%clk 0:01:56.5]} 15...
Ned7 {[%clk 0:02:01.4]} 16. Nc4 {[%clk 0:01:54.4]} 16... Rf8 {[%clk 0:01:47.2]}
17. a5 {[%clk 0:01:48.5]} 17... Ne8 {[%clk 0:01:46.1]} 18. e5 {[%clk 0:01:41.5]}
18... Ra8 {[%clk 0:01:34.4]} 19. e6 {[%clk 0:01:17.9]} 19... fxe6 {[%clk
0:01:33.7]} 20. dxe6 {[%clk 0:01:17.1]} 20... Ndf6 {[%clk 0:01:33.4]} 21. Nb6
{[%clk 0:01:15.5]} 21... Rb8 {[%clk 0:01:32.9]} 22. Bc4 {[%clk 0:01:11.8]} 22...
Nc7 {[%clk 0:01:32.3]} 23. Be3 {[%clk 0:00:33.8]} 23... Kh8 {[%clk 0:01:30.9]}
24. Bf2 {[%clk 0:00:17.7]} 24... Na8 {[%clk 0:01:30.3]} 25. Nd5 {[%clk
0:00:16.8]} 25... Nxd5 {[%clk 0:01:29.9]} 26. Bxd5 {[%clk 0:00:16.7]} 26... Nc7
{[%clk 0:01:30.8]} 27. g3 {[%clk 0:00:15.7]} 27... b5 {[%clk 0:01:24.2]} 28. Bg2
{[%clk 0:00:09.3]} 28... b4 {[%clk 0:01:23.1]} 29. Qd2 {[%clk 0:00:07.6]} 29...
bxc3 {[%clk 0:01:23.1]} 30. bxc3 {[%clk 0:00:08.5]} 30... Rb3 {[%clk 0:01:23.4]}
31. Rac1 {[%clk 0:00:08.2]} 31... Qb8 {[%clk 0:01:23.5]} 32. Qd3 {[%clk
0:00:05.4]} 32... Qb5 {[%clk 0:01:22.5]} 33. Qxb5 {[%clk 0:00:04.8]} 33... Nxb5
{[%clk 0:01:22.7]} 34. Bb7 {[%clk 0:00:03.3]} 34... Nxc3 {[%clk 0:01:16.7]} 35.
Bxa6 {[%clk 0:00:03.3]} 35... Ra3 {[%clk 0:01:17]} 36. Bc4 {[%clk 0:00:02.7]}
36... Rxa5 {[%clk 0:01:17]} 37. Kg2 {[%clk 0:00:02.2]} 37... Ra4 {[%clk
0:01:16.5]} 38. Bd3 {[%clk 0:00:02.1]} 38... Ra2 {[%clk 0:01:14.8]} 39. Rc2
{[%clk 0:00:02.2]} 39... Ra3 {[%clk 0:01:14.4]} 40. Bf1 {[%clk 0:00:01.1]} 40...
Nd5 {[%clk 0:01:12.9]} 41. Rd1 {[%clk 0:00:01.4]} 41... Ne3+ {[%clk 0:01:12.4]}
42. Bxe3 {[%clk 0:00:02]} 42... Rxe3 {[%clk 0:01:13.3]} 43. Re2 {[%clk
0:00:02.3]} 43... Rxe2+ {[%clk 0:01:12.4]} 44. Bxe2 {[%clk 0:00:03.2]} 44... Rb8
{[%clk 0:01:12.7]} 45. Bf3 {[%clk 0:00:03.4]} 45... Rb2+ {[%clk 0:01:12.5]} 46.
Kf1 {[%clk 0:00:03.6]} 46... Bd4 {[%clk 0:01:12.9]} 47. Bg4 {[%clk 0:00:02.6]}
47... Rf2+ {[%clk 0:01:10]} 48. Ke1 {[%clk 0:00:02.9]} 48... Rg2 {[%clk
0:01:10.2]} 49. Rd3 {[%clk 0:00:03.5]} 49... Kg7 {[%clk 0:01:09.1]} 50. Rb3
{[%clk 0:00:02.7]} 50... h5 {[%clk 0:01:08.5]} 51. Be2 {[%clk 0:00:02]} 51...
Kf6 {[%clk 0:01:08]} 52. Bf1 {[%clk 0:00:02.3]} 52... Rh2 {[%clk 0:01:06.4]} 53.
g4 {[%clk 0:00:02.3]} 53... hxg4 {[%clk 0:01:06.2]} 54. hxg4 {[%clk 0:00:03.2]}
54... Kxe6 {[%clk 0:01:06.6]} 55. Bc4+ {[%clk 0:00:02.4]} 55... Kf6 {[%clk
0:01:05.8]} 56. Bd5 {[%clk 0:00:02.3]} 56... Rh4 {[%clk 0:01:03.7]} 57. g5+
{[%clk 0:00:02.5]} 57... Kf5 {[%clk 0:01:03.6]} 58. Ke2 {[%clk 0:00:01.8]} 58...
Rxf4 {[%clk 0:01:03]} 59. Rf3 {[%clk 0:00:02.4]} 59... Rxf3 {[%clk 0:01:02.9]}
60. Kxf3 {[%clk 0:00:03.1]} 60... Kxg5 {[%clk 0:01:03.8]} 61. Ke4 {[%clk
0:00:03.4]} 61... Kf6 {[%clk 0:01:04.1]} 62. Bc4 {[%clk 0:00:03.6]} 62... e6
{[%clk 0:01:04.6]} 63. Be2 {[%clk 0:00:03.9]} 63... d5+ {[%clk 0:01:04.6]} 64.
Kf3 {[%clk 0:00:04.3]} 64... g5 {[%clk 0:01:03.9]} 65. Bf1 {[%clk 0:00:04.8]}
65... Be5 {[%clk 0:01:04.2]} 66. Bh3 {[%clk 0:00:05.6]} 66... Bf4 {[%clk
0:01:05.1]} 67. Bg4 {[%clk 0:00:06.2]} 67... c4 {[%clk 0:01:05.4]} 68. Kg2
{[%clk 0:00:07.1]} 68... e5 {[%clk 0:01:05.8]} 69. Be2 {[%clk 0:00:08]} 69... e4
{[%clk 0:01:06.3]} 70. Kf2 {[%clk 0:00:07.9]} 70... c3 {[%clk 0:01:06.2]} 71.
Kg2 {[%clk 0:00:08.8]} 0-1

[Event "*** SCC Grand Prix: Titled Tuesday Blitz"]
[Site "Chess.com"]
[Date "2020.10.06"]
[Round "1"]
[White "WildTricks"]
[Black "RaunakSadhwani2005"]
[Result "0-1"]
[WhiteElo "2460"]
[BlackElo "2914"]
[TimeControl "180+1"]
[EndTime "10:07:45 PDT"]
[Termination "RaunakSadhwani2005 won by resignation"]

1. e4 {[%clk 0:02:58.9]} 1... g6 {[%clk 0:02:59.6]} 2. d4 {[%clk 0:02:58.3]}
2... Bg7 {[%clk 0:03:00.2]} 3. Nf3 {[%clk 0:02:57.8]} 3... d6 {[%clk 0:03:00.4]}
4. Bc4 {[%clk 0:02:57.6]} 4... Nf6 {[%clk 0:02:57.7]} 5. Qe2 {[%clk 0:02:56.8]}
5... Nc6 {[%clk 0:02:57.8]} 6. e5 {[%clk 0:02:56.3]} 6... dxe5 {[%clk
0:02:57.4]} 7. dxe5 {[%clk 0:02:57.2]} 7... Ng4 {[%clk 0:02:57.3]} 8. Bf4 {[%clk
0:02:38.1]} 8... Nd4 {[%clk 0:02:53.7]} 9. Qe4 {[%clk 0:02:14]} 9... Nxf3+
{[%clk 0:02:42.9]} 10. gxf3 {[%clk 0:02:13.5]} 10... Nh6 {[%clk 0:02:18]} 11.
Nc3 {[%clk 0:02:08.9]} 11... c6 {[%clk 0:02:05.7]} 12. h4 {[%clk 0:01:59.3]}
12... Nf5 {[%clk 0:01:18.7]} 13. h5 {[%clk 0:01:25.1]} 13... Be6 {[%clk
0:00:51.5]} 14. Bxe6 {[%clk 0:01:09]} 14... fxe6 {[%clk 0:00:52.4]} 15. h6
{[%clk 0:00:54.2]} 15... Bf8 {[%clk 0:00:51.7]} 16. Qc4 {[%clk 0:00:51]} 16...
Qd4 {[%clk 0:00:32.2]} 17. Qxd4 {[%clk 0:00:46.7]} 17... Nxd4 {[%clk 0:00:33.1]}
18. O-O-O {[%clk 0:00:47]} 18... Nf5 {[%clk 0:00:23.7]} 19. Ne4 {[%clk
0:00:44.4]} 19... b6 {[%clk 0:00:23.5]} 20. Ng5 {[%clk 0:00:43]} 20... Bxh6
{[%clk 0:00:22.1]} 21. Rxh6 {[%clk 0:00:19.2]} 21... Nxh6 {[%clk 0:00:23]} 22.
Nxe6 {[%clk 0:00:19.4]} 22... Kf7 {[%clk 0:00:13.4]} 23. Nc7 {[%clk 0:00:18.5]}
23... Rac8 {[%clk 0:00:09]} 24. e6+ {[%clk 0:00:18.1]} 24... Kf6 {[%clk
0:00:09.3]} 25. Re1 {[%clk 0:00:09.4]} 25... g5 {[%clk 0:00:09.7]} 26. Be5+
{[%clk 0:00:09]} 26... Kg6 {[%clk 0:00:10.6]} 27. Bxh8 {[%clk 0:00:08]} 27...
Rxh8 {[%clk 0:00:11.2]} 28. Rd1 {[%clk 0:00:06.8]} 28... Nf5 {[%clk 0:00:11.4]}
29. Rd7 {[%clk 0:00:06.9]} 29... h5 {[%clk 0:00:11.8]} 30. Na6 {[%clk
0:00:02.5]} 30... h4 {[%clk 0:00:11.9]} 31. Rd1 {[%clk 0:00:02.8]} 31... h3
{[%clk 0:00:12.3]} 32. Nb4 {[%clk 0:00:03.2]} 32... h2 {[%clk 0:00:11.5]} 33.
Rh1 {[%clk 0:00:03.7]} 33... Nd4 {[%clk 0:00:12.1]} 34. Nd3 {[%clk 0:00:03.7]}
34... Nxf3 {[%clk 0:00:11.7]} 35. Kd1 {[%clk 0:00:04.1]} 35... Kf5 {[%clk
0:00:11.4]} 36. Ke2 {[%clk 0:00:04.5]} 36... g4 {[%clk 0:00:12]} 37. Ne1 {[%clk
0:00:04.1]} 37... Nxe1 {[%clk 0:00:12]} 38. Kxe1 {[%clk 0:00:04.5]} 38... Kxe6
{[%clk 0:00:12.6]} 39. Kf1 {[%clk 0:00:04.7]} 39... Kf5 {[%clk 0:00:12.8]} 40.
Kg2 {[%clk 0:00:05.2]} 40... Kf4 {[%clk 0:00:13.2]} 41. Re1 {[%clk 0:00:04.6]}
41... h1=Q+ {[%clk 0:00:12.6]} 42. Rxh1 {[%clk 0:00:05.1]} 42... Rxh1 {[%clk
0:00:13]} 43. Kxh1 {[%clk 0:00:06]} 43... Kf3 {[%clk 0:00:13]} 44. Kg1 {[%clk
0:00:06.6]} 44... g3 {[%clk 0:00:12.8]} 45. fxg3 {[%clk 0:00:07.5]} 45... Kxg3
{[%clk 0:00:13.7]} 46. Kf1 {[%clk 0:00:08.4]} 46... Kf3 {[%clk 0:00:14.5]} 47.
Ke1 {[%clk 0:00:09]} 47... Ke3 {[%clk 0:00:15.2]} 48. Kd1 {[%clk 0:00:09.6]}
48... e5 {[%clk 0:00:14.9]} 49. Ke1 {[%clk 0:00:10]} 49... e4 {[%clk 0:00:14.9]}
50. Kd1 {[%clk 0:00:10.1]} 50... Kf2 {[%clk 0:00:15]} 0-1

[Event "*** SCC Grand Prix: Titled Tuesday Blitz"]
[Site "Chess.com"]
[Date "2020.10.06"]
[Round "1"]
[White "guillembaches"]
[Black "Supernotar"]
[Result "0-1"]
[WhiteElo "2416"]
[BlackElo "2804"]
[TimeControl "180+1"]
[EndTime "10:07:45 PDT"]
[Termination "Supernotar won on time"]

1. e4 {[%clk 0:02:59.9]} 1... c6 {[%clk 0:02:59.8]} 2. c4 {[%clk 0:02:59.4]}
2... d5 {[%clk 0:03:00]} 3. exd5 {[%clk 0:03:00.3]} 3... cxd5 {[%clk 0:03:00.7]}
4. cxd5 {[%clk 0:03:01.2]} 4... Nf6 {[%clk 0:03:01.3]} 5. Nc3 {[%clk 0:03:01.4]}
5... Nxd5 {[%clk 0:03:01]} 6. Nf3 {[%clk 0:03:01.8]} 6... Nc6 {[%clk 0:03:00.6]}
7. Bb5 {[%clk 0:03:01.9]} 7... e6 {[%clk 0:02:57.3]} 8. d4 {[%clk 0:03:01.8]}
8... Be7 {[%clk 0:02:57.2]} 9. O-O {[%clk 0:03:01.8]} 9... O-O {[%clk
0:02:57.3]} 10. Re1 {[%clk 0:03:01.6]} 10... Nxc3 {[%clk 0:02:41.3]} 11. bxc3
{[%clk 0:03:01]} 11... Qc7 {[%clk 0:02:41.2]} 12. Bg5 {[%clk 0:02:45.7]} 12...
Bd6 {[%clk 0:02:29.1]} 13. Bd3 {[%clk 0:02:29.1]} 13... b6 {[%clk 0:02:25.8]}
14. Qe2 {[%clk 0:02:26.3]} 14... Bb7 {[%clk 0:02:21.9]} 15. Qe4 {[%clk
0:02:22.7]} 15... g6 {[%clk 0:02:22]} 16. Qh4 {[%clk 0:02:15.2]} 16... Rfe8
{[%clk 0:01:46.6]} 17. Bf6 {[%clk 0:02:08.3]} 17... Bf8 {[%clk 0:01:43.4]} 18.
Ng5 {[%clk 0:02:02.3]} 18... h6 {[%clk 0:01:39.1]} 19. Ne4 {[%clk 0:01:49.7]}
19... Bg7 {[%clk 0:01:12.6]} 20. Bxg7 {[%clk 0:01:34]} 20... Kxg7 {[%clk
0:01:12.7]} 21. Qf6+ {[%clk 0:01:32.9]} 21... Kg8 {[%clk 0:01:08.9]} 22. Re3
{[%clk 0:01:28.1]} 22... Qe7 {[%clk 0:01:05.7]} 23. Qf4 {[%clk 0:01:21]} 23...
Kg7 {[%clk 0:01:05.6]} 24. Rh3 {[%clk 0:01:13.6]} 24... Rh8 {[%clk 0:01:05.4]}
25. Re1 {[%clk 0:01:05.6]} 25... Rad8 {[%clk 0:01:01.5]} 26. Bb5 {[%clk
0:00:52.1]} 26... Rd5 {[%clk 0:00:58.7]} 27. Bxc6 {[%clk 0:00:44.3]} 27... Bxc6
{[%clk 0:00:59.6]} 28. Qe3 {[%clk 0:00:33.9]} 28... Rf5 {[%clk 0:00:55.8]} 29.
Ng3 {[%clk 0:00:30.8]} 29... Rg5 {[%clk 0:00:53.3]} 30. Ne4 {[%clk 0:00:26.4]}
30... Bxe4 {[%clk 0:00:52.1]} 31. Qxe4 {[%clk 0:00:27.3]} 31... Rf5 {[%clk
0:00:47.6]} 32. c4 {[%clk 0:00:27]} 32... Qf6 {[%clk 0:00:45.1]} 33. Re2 {[%clk
0:00:21.5]} 33... Rd8 {[%clk 0:00:43.8]} 34. Rd3 {[%clk 0:00:21]} 34... Rf4
{[%clk 0:00:41.4]} 35. Qb7 {[%clk 0:00:20.9]} 35... Rfxd4 {[%clk 0:00:39.2]} 36.
Rxd4 {[%clk 0:00:20.9]} 36... Qxd4 {[%clk 0:00:37.5]} 37. Re1 {[%clk 0:00:20.1]}
37... Rd7 {[%clk 0:00:36.1]} 38. Qa6 {[%clk 0:00:19.3]} 38... Qc3 {[%clk
0:00:30.8]} 39. Rf1 {[%clk 0:00:17.4]} 39... Rc7 {[%clk 0:00:30.6]} 40. h3
{[%clk 0:00:16.3]} 40... Qxc4 {[%clk 0:00:30.6]} 41. Qa3 {[%clk 0:00:16.5]}
41... Qd4 {[%clk 0:00:29.7]} 42. Qf3 {[%clk 0:00:15.7]} 42... Rc2 {[%clk
0:00:28.4]} 43. Qb7 {[%clk 0:00:14.9]} 43... Rxa2 {[%clk 0:00:26.3]} 44. Qe7
{[%clk 0:00:14.1]} 44... Rd2 {[%clk 0:00:25.6]} 45. h4 {[%clk 0:00:14.2]} 45...
Rd1 {[%clk 0:00:24.9]} 46. Rxd1 {[%clk 0:00:13.6]} 46... Qxd1+ {[%clk
0:00:25.8]} 47. Kh2 {[%clk 0:00:14.2]} 47... Qd4 {[%clk 0:00:24.1]} 48. Kg1
{[%clk 0:00:12.2]} 48... a5 {[%clk 0:00:23.1]} 49. g3 {[%clk 0:00:12.5]} 49...
h5 {[%clk 0:00:22.8]} 0-1

[Event "*** SCC Grand Prix: Titled Tuesday Blitz"]
[Site "Chess.com"]
[Date "2020.10.06"]
[Round "1"]
[White "GregShahade"]
[Black "VinzentSpitzl"]
[Result "1-0"]
[WhiteElo "2639"]
[BlackElo "2322"]
[TimeControl "180+1"]
[EndTime "10:07:47 PDT"]
[Termination "GregShahade won by resignation"]

1. e4 {[%clk 0:03:00.9]} 1... c5 {[%clk 0:02:57]} 2. Nf3 {[%clk 0:03:01.2]} 2...
d6 {[%clk 0:02:56.6]} 3. d4 {[%clk 0:03:01.6]} 3... cxd4 {[%clk 0:02:56.3]} 4.
Nxd4 {[%clk 0:03:02.5]} 4... Nf6 {[%clk 0:02:57.2]} 5. Nc3 {[%clk 0:03:03]} 5...
a6 {[%clk 0:02:57.8]} 6. Be3 {[%clk 0:03:02.7]} 6... e5 {[%clk 0:02:57.1]} 7.
Nb3 {[%clk 0:03:03.2]} 7... Be6 {[%clk 0:02:57]} 8. f3 {[%clk 0:03:02.7]} 8...
h5 {[%clk 0:02:56.6]} 9. Nd5 {[%clk 0:03:02.4]} 9... Bxd5 {[%clk 0:02:49.6]} 10.
exd5 {[%clk 0:03:03.3]} 10... Nbd7 {[%clk 0:02:37.6]} 11. Qd2 {[%clk 0:03:01]}
11... Qc7 {[%clk 0:02:33.4]} 12. O-O-O {[%clk 0:02:59.6]} 12... a5 {[%clk
0:02:30.6]} 13. a4 {[%clk 0:02:52.9]} 13... g6 {[%clk 0:02:25.8]} 14. Bb5 {[%clk
0:02:43.6]} 14... Bg7 {[%clk 0:02:25.1]} 15. Kb1 {[%clk 0:02:42.5]} 15... O-O
{[%clk 0:02:24.4]} 16. h3 {[%clk 0:02:34.1]} 16... Nb6 {[%clk 0:02:16.2]} 17. g4
{[%clk 0:02:20.2]} 17... Nfxd5 {[%clk 0:01:44.4]} 18. Bxb6 {[%clk 0:02:19.4]}
18... Nxb6 {[%clk 0:01:43.1]} 19. Qxd6 {[%clk 0:02:19.5]} 19... Qxd6 {[%clk
0:01:31.3]} 20. Rxd6 {[%clk 0:02:18.6]} 20... Nc8 {[%clk 0:01:29.3]} 21. Rd7
{[%clk 0:02:16.7]} 21... hxg4 {[%clk 0:01:29.6]} 22. hxg4 {[%clk 0:02:16.1]}
22... b6 {[%clk 0:01:30.5]} 23. Rhd1 {[%clk 0:02:06.7]} 23... Ra7 {[%clk
0:01:26.7]} 24. Bc4 {[%clk 0:01:59.1]} 24... Bf6 {[%clk 0:01:04.7]} 25. Rxa7
{[%clk 0:01:54.4]} 25... Nxa7 {[%clk 0:01:04.6]} 26. Rd6 {[%clk 0:01:55.2]}
26... Bd8 {[%clk 0:01:04.7]} 27. Rxg6+ {[%clk 0:01:54.1]} 27... Kh7 {[%clk
0:01:04.2]} 28. Rd6 {[%clk 0:01:51]} 28... Nc8 {[%clk 0:00:59.1]} 29. Rd7 {[%clk
0:01:47.1]} 29... Kg6 {[%clk 0:00:57.7]} 30. Nd2 {[%clk 0:01:38.6]} 30... f5
{[%clk 0:00:48.1]} 31. Bd3 {[%clk 0:01:31.2]} 31... e4 {[%clk 0:00:46.7]} 32.
gxf5+ {[%clk 0:01:30.6]} 32... Kxf5 {[%clk 0:00:46.2]} 33. Bxe4+ {[%clk
0:01:29.5]} 33... Kf4 {[%clk 0:00:46.6]} 34. Nc4 {[%clk 0:01:27.5]} 34... Be7
{[%clk 0:00:40.3]} 35. Nxb6 {[%clk 0:01:15.8]} 35... Nxb6 {[%clk 0:00:37.7]} 36.
Rxe7 {[%clk 0:01:15.9]} 36... Nxa4 {[%clk 0:00:35]} 37. Ra7 {[%clk 0:01:14.3]}
37... Rb8 {[%clk 0:00:34.4]} 38. b3 {[%clk 0:01:02.9]} 38... Nc3+ {[%clk
0:00:34]} 39. Kb2 {[%clk 0:00:57.8]} 39... Nxe4 {[%clk 0:00:34.4]} 40. fxe4
{[%clk 0:00:57.8]} 40... Rb5 {[%clk 0:00:35]} 41. Re7 {[%clk 0:00:31.5]} 41...
a4 {[%clk 0:00:29.6]} 42. Ka3 {[%clk 0:00:31.5]} 42... axb3 {[%clk 0:00:28.6]}
43. cxb3 {[%clk 0:00:32.4]} 43... Ke3 {[%clk 0:00:27.2]} 44. e5 {[%clk
0:00:29.4]} 44... Kd4 {[%clk 0:00:27.6]} 45. e6 {[%clk 0:00:29.1]} 45... Kd5
{[%clk 0:00:28.1]} 46. Re8 {[%clk 0:00:28.3]} 46... Kd6 {[%clk 0:00:28.5]} 47.
Ka4 {[%clk 0:00:27.7]} 47... Re5 {[%clk 0:00:27]} 48. b4 {[%clk 0:00:26.9]}
48... Re1 {[%clk 0:00:27.2]} 49. Kb5 {[%clk 0:00:26.8]} 49... Ra1 {[%clk
0:00:26.5]} 50. Kb6 {[%clk 0:00:26.7]} 50... Rb1 {[%clk 0:00:24.6]} 51. b5
{[%clk 0:00:26.9]} 51... Rc1 {[%clk 0:00:24.9]} 52. Ka6 {[%clk 0:00:25]} 52...
Ra1+ {[%clk 0:00:25]} 53. Kb7 {[%clk 0:00:25.2]} 53... Rb1 {[%clk 0:00:24.9]}
54. b6 {[%clk 0:00:25.3]} 54... Ra1 {[%clk 0:00:23.9]} 55. Kb8 {[%clk
0:00:24.6]} 55... Rb1 {[%clk 0:00:23.5]} 56. b7 {[%clk 0:00:24.8]} 56... Ra1
{[%clk 0:00:23.7]} 57. e7 {[%clk 0:00:22.5]} 57... Kd7 {[%clk 0:00:23.4]} 58.
Rd8+ {[%clk 0:00:22.6]} 58... Kxe7 {[%clk 0:00:23.8]} 59. Rd4 {[%clk 0:00:22.9]}
59... Rc1 {[%clk 0:00:21.2]} 60. Ka7 {[%clk 0:00:22.9]} 1-0

[Event "*** SCC Grand Prix: Titled Tuesday Blitz"]
[Site "Chess.com"]
[Date "2020.10.06"]
[Round "1"]
[White "Orest_Vovk"]
[Black "Denis_Makhnyov"]
[Result "0-1"]
[WhiteElo "2464"]
[BlackElo "2946"]
[TimeControl "180+1"]
[EndTime "10:07:49 PDT"]
[Termination "Denis_Makhnyov won by checkmate"]

1. h4 {[%clk 0:03:00.9]} 1... e5 {[%clk 0:02:58.4]} 2. h5 {[%clk 0:03:00.5]}
2... d5 {[%clk 0:02:56.3]} 3. h6 {[%clk 0:02:59.8]} 3... g6 {[%clk 0:02:51.9]}
4. d4 {[%clk 0:02:57.9]} 4... Nc6 {[%clk 0:02:50.1]} 5. dxe5 {[%clk 0:02:53.8]}
5... Nxe5 {[%clk 0:02:47.9]} 6. Nf3 {[%clk 0:02:50.4]} 6... Nxf3+ {[%clk
0:02:41.6]} 7. exf3 {[%clk 0:02:48]} 7... c6 {[%clk 0:02:39.3]} 8. Qd4 {[%clk
0:02:44.6]} 8... Qf6 {[%clk 0:02:38.6]} 9. Be3 {[%clk 0:02:40.2]} 9... Be6
{[%clk 0:02:31.3]} 10. Nc3 {[%clk 0:02:39.3]} 10... Bd6 {[%clk 0:02:25.5]} 11.
O-O-O {[%clk 0:02:05.6]} 11... Qxd4 {[%clk 0:02:06]} 12. Bxd4 {[%clk 0:02:03.2]}
12... f6 {[%clk 0:02:06.1]} 13. Re1 {[%clk 0:01:53.5]} 13... Kf7 {[%clk
0:02:05.5]} 14. g3 {[%clk 0:01:51.7]} 14... Ne7 {[%clk 0:02:03.5]} 15. g4 {[%clk
0:01:17.4]} 15... Rhe8 {[%clk 0:01:38.1]} 16. Bd3 {[%clk 0:01:08.8]} 16... b5
{[%clk 0:01:31]} 17. Be3 {[%clk 0:00:52.9]} 17... a6 {[%clk 0:01:25.1]} 18. Ne2
{[%clk 0:00:50.9]} 18... c5 {[%clk 0:00:58.3]} 19. c3 {[%clk 0:00:48.4]} 19...
Rad8 {[%clk 0:00:49.1]} 20. Bc2 {[%clk 0:00:44.3]} 20... Nc6 {[%clk 0:00:38.9]}
21. g5 {[%clk 0:00:39.1]} 21... fxg5 {[%clk 0:00:36.4]} 22. Bxg5 {[%clk
0:00:38.6]} 22... Rd7 {[%clk 0:00:34.5]} 23. Nf4 {[%clk 0:00:38.5]} 23... Bxf4+
{[%clk 0:00:34.3]} 24. Bxf4 {[%clk 0:00:38.6]} 24... d4 {[%clk 0:00:35]} 25. Be4
{[%clk 0:00:30]} 25... Bd5 {[%clk 0:00:34.9]} 26. Bxd5+ {[%clk 0:00:27.6]} 26...
Rxd5 {[%clk 0:00:34.5]} 27. Rxe8 {[%clk 0:00:28.3]} 27... Kxe8 {[%clk
0:00:34.7]} 28. Re1+ {[%clk 0:00:29.2]} 28... Kf7 {[%clk 0:00:34.9]} 29. Bd2
{[%clk 0:00:22.6]} 29... Ne5 {[%clk 0:00:33.6]} 30. Re4 {[%clk 0:00:19.4]} 30...
Nxf3 {[%clk 0:00:30.2]} 31. cxd4 {[%clk 0:00:13.5]} 31... Nxd2 {[%clk 0:00:23]}
32. Kxd2 {[%clk 0:00:12.5]} 32... Rxd4+ {[%clk 0:00:19]} 33. Rxd4 {[%clk
0:00:12.6]} 33... cxd4 {[%clk 0:00:19.9]} 34. Kd3 {[%clk 0:00:13.1]} 34... g5
{[%clk 0:00:20.8]} 35. Kxd4 {[%clk 0:00:12.9]} 35... Kg6 {[%clk 0:00:21.4]} 36.
Kc5 {[%clk 0:00:13.5]} 36... Kxh6 {[%clk 0:00:22]} 37. Kb6 {[%clk 0:00:14.1]}
37... Kg6 {[%clk 0:00:22.6]} 38. Kxa6 {[%clk 0:00:14.7]} 38... h5 {[%clk
0:00:23.2]} 39. Kxb5 {[%clk 0:00:11.8]} 39... h4 {[%clk 0:00:23.4]} 40. a4
{[%clk 0:00:12]} 40... h3 {[%clk 0:00:23.6]} 41. a5 {[%clk 0:00:12.9]} 41... h2
{[%clk 0:00:23.9]} 42. a6 {[%clk 0:00:13.8]} 42... h1=Q {[%clk 0:00:23.4]} 43.
b4 {[%clk 0:00:14.1]} 43... Kf6 {[%clk 0:00:20.7]} 44. Kb6 {[%clk 0:00:11.2]}
44... Ke7 {[%clk 0:00:20.7]} 45. Kc7 {[%clk 0:00:09.7]} 45... Qc1+ {[%clk
0:00:19.1]} 46. Kb7 {[%clk 0:00:09.1]} 46... Kd7 {[%clk 0:00:19.3]} 47. b5
{[%clk 0:00:06.3]} 47... Qc8+ {[%clk 0:00:18.9]} 48. Ka7 {[%clk 0:00:05.3]}
48... Qc7+ {[%clk 0:00:19.1]} 49. Ka8 {[%clk 0:00:05.6]} 49... Kc8 {[%clk
0:00:19.5]} 50. b6 {[%clk 0:00:04.4]} 50... Qb8# {[%clk 0:00:19.5]} 0-1